bitfinex/quotes_ETHUSD_20250219
["timestamp","ask_amount","ask_price","bid_price","bid_amount"]
[1739993113690,3.67743,2719.3,2718.6,3.67826]
[1739993113870,0.8063,2719.2,2718.8,3.67805]
[1739993114075,0.7595,2719.5,2718.5,0.8214]
[1739993114257,0.7595,2719.8,2718.7,0.55]
[1739993114462,0.7595,2719.8,2718.7,4.22816]
[1739993114642,4.43631,2719.8,2718.6,0.55]
[1739993114983,0.471831,2719.7,2719.2,3.67745]
[1739993115185,0.7595,2719.8,2719.2,3.67745]
[1739993115384,0.7595,2719.8,2719.4,3.67716]
[1739993115571,0.7764,2720.1,2719.9,3.67659]
[1739993115780,0.7563,2720.4,2719.5,0.55]
[1739993115959,3.67503,2721.1,2719.5,0.55]
[1739993115960,0.7563,2720.7,2720.2,3.67608]
[1739993116290,4.43185,2720.7,2719.8,3.67674]
[1739993116441,3.67571,2720.6,2719.9,3.67652]
[1739993116646,0.810756,2720.5,2719.9,3.67652]
[1739993116899,0.8203,2720.3,2719.4,3.67721]
[1739993117051,0.8203,2720.3,2719.4,3.67719]
[1739993117254,4.49644,2720.3,2719.6,3.67693]
[1739993117491,4.49644,2720.3,2719.6,7.35386]
[1739993117791,4.49644,2720.3,2719.5,3.0]
[1739993117792,3.67633,2720.1,2719.5,3.0]
[1739993117947,3.67633,2720.1,2719.5,6.67706]
[1739993118145,0.449644,2720.2,2719.3,0.7619]
[1739993118453,3.67674,2719.8,2719.1,3.67759]
[1739993118648,0.282,2720.0,2719.0,3.7912]
[1739993118943,0.7733,2720.1,2719.6,3.67689]
[1739993119151,0.7733,2720.1,2719.3,3.67729]
[1739993119590,0.7733,2720.1,2719.6,3.67699]
[1739993119772,0.7733,2720.1,2719.8,3.67671]
[1739993119950,0.7733,2720.1,2719.4,3.67718]
[1739993120286,0.7733,2720.1,2719.5,3.67701]
[1739993120490,0.7733,2720.1,2719.6,3.67699]
[1739993120791,0.7733,2720.1,2719.6,3.67692]
[1739993121290,0.7733,2720.1,2719.7,3.6768]
[1739993121986,0.7733,2720.1,2719.6,3.67697]
[1739993122149,0.7733,2720.1,2719.4,3.67719]
[1739993122485,3.67668,2719.9,2719.3,3.0]
[1739993122644,4.833238,2719.8,2719.3,3.0]
[1739993122853,3.67687,2719.7,2719.0,3.67771]
[1739993123153,1.156468,2719.8,2719.0,3.67771]
[1739993123374,3.67694,2719.7,2719.0,3.67771]
[1739993123547,0.7888,2719.8,2718.8,7.35603]
[1739993123742,0.7888,2719.8,2718.7,0.8243]
[1739993123743,3.67695,2719.7,2718.7,0.8243]
[1739993124028,3.67701,2719.6,2718.9,3.67787]
[1739993124196,7.35412,2719.6,2718.9,3.67785]
[1739993124487,4.412622,2719.5,2718.7,0.8243]
[1739993124688,0.7884,2719.4,2718.9,3.67793]
[1739993125249,0.7884,2719.4,2718.5,0.7766]
[1739993125568,0.7884,2719.4,2718.9,3.67785]
[1739993125879,3.67744,2719.3,2718.7,3.6781]
[1739993126052,0.446584,2719.2,2718.7,3.6781]
[1739993126658,0.446584,2719.2,2718.3,3.67867]
[1739993126862,0.7729,2718.8,2718.1,3.67897]
[1739993127175,0.7729,2718.8,2718.2,3.6789]
[1739993127353,3.67822,2718.7,2717.9,4.45194]
[1739993127685,0.812903,2718.7,2718.1,3.67895]
[1739993127911,0.812903,2718.7,2717.9,0.7727]
[1739993128080,0.7729,2718.8,2718.3,3.67873]
[1739993128281,0.7729,2718.8,2718.3,3.67876]
[1739993128601,0.7729,2718.8,2718.3,3.67869]
[1739993128774,0.7729,2718.8,2718.5,3.67848]
[1739993128974,0.829,2719.3,2718.5,0.7575]
[1739993129173,3.67768,2719.1,2718.4,3.67862]
[1739993129515,0.367768,2719.0,2718.5,3.67847]
[1739993129687,0.829,2719.3,2718.7,3.67822]
[1739993129886,3.27359393,2720.2,2718.7,3.67822]
[1739993129887,0.829,2719.6,2718.7,0.7575]
[1739993130087,0.829,2719.6,2719.0,3.67777]
[1739993130322,4.48667,2720.2,2719.5,3.67714]
[1739993130881,0.8104,2720.2,2719.6,3.67699]
[1739993131217,4.48664,2720.2,2719.6,3.67699]
[1739993131545,0.8104,2720.2,2719.6,3.67699]
[1739993131818,0.748655,2720.1,2719.6,3.67693]
[1739993132113,0.748655,2720.1,2719.4,4.48519]
[1739993132290,3.6765,2720.0,2719.3,3.6774]
[1739993132687,3.67691,2719.7,2719.0,3.67773]
[1739993132991,0.8113,2719.9,2719.2,3.67743]
[1739993133390,0.8113,2719.9,2719.0,0.367773]
[1739993133590,3.0,2720.3,2719.5,3.67705]
[1739993133591,3.67624,2720.2,2719.5,3.67705]
[1739993133820,7.35254,2720.2,2719.5,3.67705]
[1739993134116,3.67624,2720.2,2719.6,3.67697]
[1739993134420,1.20936632,2720.2,2719.1,0.7795]
[1739993134618,0.8113,2720.3,2720.0,3.67635]
[1739993134827,0.8113,2720.3,2719.8,3.67666]
[1739993135393,0.8113,2720.3,2719.9,3.6766]
[1739993135789,0.826,2720.6,2720.2,3.6761]
[1739993136095,0.826,2720.6,2720.3,3.67596]
[1739993136389,0.826,2720.6,2720.2,7.35222]
[1739993136603,0.826,2720.6,2720.3,3.67606]
[1739993136832,0.826,2720.6,2719.9,3.67647]
[1739993137040,1.55946391,2721.0,2720.5,3.67566]
[1739993137237,0.8075,2721.0,2720.5,3.67566]
[1739993137589,0.8075,2721.0,2720.6,3.67561]
[1739993138115,0.8075,2721.0,2720.5,3.67576]
[1739993138322,3.67527,2720.9,2720.1,7.35255]
[1739993138623,4.123757,2720.8,2720.1,7.35247]
[1739993138929,0.448277,2720.8,2720.1,3.67623]
[1739993139105,0.448277,2720.8,2720.3,3.67606]
[1739993139305,4.123687,2720.8,2720.1,3.67621]
[1739993139535,0.7798957,2720.7,2720.3,3.67604]
[1739993139711,0.7798957,2720.7,2720.1,3.67625]
[1739993139712,0.7798957,2720.7,2720.1,7.35249]
[1739993140041,8.1310557,2720.7,2720.0,3.6764]
[1739993140332,4.45883,2720.6,2720.0,3.67646]
[1739993140723,3.67586,2720.5,2719.8,3.67661]
[1739993140907,3.67595,2720.4,2719.8,3.67661]
[1739993141338,3.67595,2720.4,2719.7,0.7828]
[1739993141535,4.043755,2720.3,2719.6,3.67698]
[1739993141700,4.043755,2720.3,2719.6,7.3539]
[1739993142053,0.7831,2720.2,2719.1,0.8205]
[1739993142212,3.67683,2719.8,2719.0,3.67772]
[1739993142545,3.67701,2719.6,2719.0,3.67772]
[1739993142859,4.827713,2719.7,2719.0,7.35548]
[1739993143037,4.827713,2719.7,2719.0,3.67774]
[1739993143242,4.150783,2719.7,2718.5,3.6784]
[1739993143459,0.7611,2719.1,2718.5,3.6784]
[1739993143760,4.43887,2719.1,2718.2,3.67888]
[1739993143977,3.67796,2718.9,2718.3,3.67874]
[1739993144456,3.67796,2718.9,2718.0,3.67907]
[1739993144620,7.60809317,2718.9,2718.1,3.67902]
[1739993144820,3.67812,2718.8,2718.1,3.67902]
[1739993145013,3.67812,2718.8,2718.0,3.67907]
[1739993145346,4.49108,2718.6,2717.8,3.67936]
[1739993145759,3.67858,2718.5,2717.8,3.67936]
[1739993146122,0.8127,2718.6,2717.9,3.67918]
[1739993146455,0.8127,2718.6,2718.1,3.67895]
[1739993146662,0.8127,2718.6,2718.2,3.67889]
[1739993146856,1.30683213,2718.6,2718.2,3.67889]
[1739993147057,1.30683213,2718.6,2718.3,3.67868]
[1739993147267,0.8127,2718.6,2718.5,3.67849]
[1739993147416,0.8127,2718.6,2718.3,3.67868]
[1739993147814,0.7532,2718.9,2718.3,3.67868]
[1739993148217,0.7532,2718.9,2718.4,3.67853]
[1739993148766,0.7532,2718.9,2718.6,3.6783]
[1739993148922,1.2011087,2718.9,2718.4,3.67862]
[1739993149464,1.2011087,2718.9,2718.5,3.67841]
[1739993150151,1.2011087,2718.9,2718.0,0.7645]
[1739993150353,1.2011087,2718.9,2718.6,3.67828]
[1739993150756,0.7532,2718.9,2718.7,3.67819]
[1739993150929,0.7532,2718.9,2718.4,3.67855]
[1739993151131,0.7532,2718.9,2718.5,3.67848]
[1739993151367,0.7532,2718.9,2718.7,3.6782]
[1739993151568,0.7947,2719.2,2718.7,3.67811]
[1739993151732,1.270008,2719.2,2718.7,3.67811]
[1739993151934,1.270008,2719.2,2718.8,3.67801]
[1739993152274,1.270008,2719.2,2718.5,3.6784]
[1739993152435,3.67777,2719.1,2718.5,7.35681]
[1739993152758,3.67781,2719.1,2718.4,3.67863]
[1739993152962,0.8625498,2719.0,2718.5,3.67841]
[1739993153181,4.947648,2719.2,2718.5,3.67841]
[1739993153566,3.67783,2719.0,2718.3,3.67871]
[1739993153873,3.67791,2719.0,2718.3,7.35739]
[1739993154123,3.67802,2718.9,2718.3,3.67868]
[1739993154381,0.735593,2718.8,2718.4,3.67862]
[1739993154543,3.67791,2719.0,2718.3,3.67868]
[1739993154738,0.7537,2718.7,2718.2,3.67887]
[1739993154965,0.7537,2718.7,2718.1,3.67895]
[1739993155194,0.443181,2718.6,2717.9,3.6792]
[1739993155452,0.443181,2718.6,2717.6,0.7664]
[1739993155453,4.37331417,2718.6,2717.6,0.7664]
[1739993155655,3.67913,2718.1,2717.4,3.8283568]
[1739993155877,4.68383317,2718.3,2717.4,3.8282768]
[1739993155878,8.36268317,2718.3,2717.4,3.8282768]
[1739993156049,0.7537,2718.3,2717.8,3.67934]
[1739993156259,0.7537,2718.3,2717.6,3.67958]
[1739993156570,3.0,2718.2,2717.6,3.6797]
[1739993156770,0.7537,2718.3,2717.9,3.67929]
[1739993157081,0.7537,2718.3,2718.1,3.67898]
[1739993157453,0.7652,2718.6,2718.2,3.67889]
[1739993157667,0.7652,2718.6,2717.9,3.6792]
[1739993157883,0.7652,2718.6,2718.1,3.67893]
[1739993158085,1.17002,2718.6,2718.1,3.67893]
[1739993158302,1.17002,2718.6,2718.2,3.67877]
[1739993158599,0.7652,2718.6,2718.2,3.6789]
[1739993158809,0.7652,2718.6,2718.3,3.67876]
[1739993158963,0.7652,2718.6,2718.2,3.67888]
[1739993159295,0.7652,2718.6,2718.1,3.67902]
[1739993159868,4.44357,2718.6,2718.0,3.6791]
[1739993160198,5.187927,2718.6,2718.0,3.6791]
[1739993160599,0.7652,2718.6,2718.3,7.35746]
[1739993160893,0.7652,2718.6,2717.7,3.67958]
[1739993161098,3.67871,2718.4,2717.8,3.67944]
[1739993161667,0.7682,2718.2,2717.7,3.67958]
[1739993162061,4.44711,2718.2,2717.5,3.67976]
[1739993162262,3.67912,2718.1,2717.4,0.1483868]
[1739993162462,3.67912,2718.1,2717.4,3.8282468]
[1739993162661,3.67919,2718.0,2717.4,0.1483868]
[1739993162864,0.735831,2717.9,2717.4,0.1483868]
[1739993163363,3.67944,2717.8,2717.4,0.1483868]
[1739993163568,0.7682,2717.7,2717.4,0.1483868]
[1739993165437,0.7682,2717.7,2717.5,3.67977]
[1739993165746,3.8262,2718.2,2717.8,3.67934]
[1739993165941,0.83537552,2718.1,2717.8,3.67934]
[1739993166429,0.8262,2718.2,2718.0,3.67917]
[1739993166592,0.8262,2718.2,2717.9,3.67928]
[1739993166784,0.8262,2718.2,2718.0,3.67908]
[1739993167131,0.8101,2718.5,2718.1,3.67904]
[1739993167342,0.8101,2718.5,2717.9,7.35841]
[1739993167500,0.8101,2718.5,2718.0,3.67913]
[1739993168030,0.8101,2718.5,2717.7,0.446662]
[1739993168191,0.7587,2718.8,2717.7,3.996662]
[1739993168387,0.7587,2718.8,2718.5,3.6784]
[1739993168702,0.7587,2718.8,2718.3,7.35735]
[1739993168903,0.7587,2718.8,2718.4,3.67861]
[1739993169493,0.7587,2718.8,2718.3,3.67864]
[1739993169694,0.7739,2719.1,2718.7,3.6782]
[1739993170396,0.7739,2719.1,2718.7,7.35634]
[1739993170730,0.7739,2719.1,2718.8,3.67799]
[1739993170892,0.7739,2719.1,2718.7,7.35624]
[1739993171088,0.7739,2719.1,2718.7,3.6781]
[1739993171293,0.7739,2719.4,2718.7,0.44856]
[1739993171518,3.67742,2719.3,2718.6,3.67827]
[1739993171717,3.67776,2719.1,2718.5,3.67847]
[1739993172031,0.7739,2719.4,2718.5,3.67847]
[1739993172032,0.367776,2719.0,2718.5,3.67847]
[1739993172192,3.67749,2719.3,2718.2,0.8288]
[1739993172532,3.67749,2719.3,2718.4,3.67863]
[1739993172705,3.67771,2719.1,2718.4,3.67863]
[1739993173400,0.7739,2719.4,2718.3,3.67867]
[1739993173590,0.8254,2718.8,2718.2,3.67882]
[1739993173795,0.450344,2718.7,2718.2,3.67881]
[1739993174691,0.8254,2718.8,2718.1,0.1512]
[1739993174922,4.50302,2719.2,2718.5,3.67842]
[1739993175101,4.50302,2719.2,2718.1,0.1512]
[1739993175102,0.8254,2719.2,2718.4,3.67863]
[1739993175315,4.50262,2719.5,2718.8,3.67795]
[1739993175519,4.50262,2719.5,2718.9,3.67786]
[1739993175833,0.450262,2719.4,2718.9,3.67786]
[1739993176130,0.450262,2719.4,2718.5,0.8033]
[1739993176289,4.50259,2719.5,2718.9,3.67785]
[1739993176495,3.67754,2719.3,2718.6,3.67835]
[1739993176690,3.67738,2719.4,2718.7,3.67821]
[1739993176994,0.8254,2719.5,2719.1,3.67767]
[1739993177306,0.8254,2719.5,2719.2,3.67754]
[1739993177937,0.8254,2719.5,2718.9,3.67786]
[1739993178109,0.8254,2719.5,2719.1,3.67762]
[1739993178413,0.8254,2719.5,2719.1,7.35524]
[1739993178602,0.8254,2719.5,2719.1,3.67762]
[1739993178804,0.8254,2719.5,2719.2,3.67747]
[1739993179000,0.7867,2719.8,2719.3,3.67734]
[1739993179201,3.67633,2720.1,2719.5,3.67703]
[1739993179202,1.80645627,2720.1,2719.5,3.67703]
[1739993179405,1.80645627,2720.1,2719.7,3.67675]
[1739993179606,1.0687,2720.1,2719.7,3.67675]
[1739993180005,1.0687,2720.1,2719.7,7.35355]
[1739993180208,0.282,2720.1,2719.8,3.67671]
[1739993180450,0.282,2720.1,2719.7,3.67675]
[1739993180821,3.67609,2720.3,2719.7,3.67675]
[1739993181036,4.56354657,2720.3,2719.7,3.67675]
[1739993181415,0.88745657,2720.3,2719.7,3.67675]
[1739993181816,0.88745657,2720.3,2719.7,7.35353]
[1739993182312,0.88745657,2720.3,2719.8,3.67671]
[1739993182543,0.7867,2720.4,2719.8,3.67671]
[1739993182928,4.46263,2720.4,2719.7,3.67679]
[1739993183440,0.7867,2720.4,2719.4,3.67728]
[1739993183657,0.7869,2721.0,2720.2,0.8225]
[1739993183863,0.7869,2721.6,2720.5,3.67572]
[1739993184011,0.7869,2721.6,2720.2,3.8225]
[1739993184230,1.52988978,2721.6,2720.8,3.67528]
[1739993184433,3.0,2721.5,2720.8,3.67528]
[1739993184772,0.82043098,2721.4,2721.0,3.6751]
[1739993185073,7.46127,2721.6,2720.9,3.67517]
[1739993185578,0.7869,2721.6,2721.2,3.67476]
[1739993185869,0.7869,2721.6,2721.2,3.67473]
[1739993186227,0.7618,2721.9,2721.4,3.6745]
[1739993186441,0.7618,2721.9,2721.5,3.67433]
[1739993186859,0.7618,2721.9,2721.3,7.34925]
[1739993187059,0.7618,2721.9,2721.3,3.67459]
[1739993187273,0.7618,2721.9,2721.4,3.67452]
[1739993187454,0.7618,2721.9,2721.3,3.67459]
[1739993187455,0.443558,2721.8,2721.5,3.67442]
[1739993187656,3.0,2722.1,2721.5,3.67431]
[1739993187859,4.42763,2722.2,2721.6,3.67422]
[1739993187860,3.7541,2722.2,2721.6,3.67422]
[1739993188051,0.7541,2722.2,2721.8,3.67391]
[1739993188452,3.67284,2722.7,2721.8,3.67391]
[1739993188453,0.7974,2722.6,2721.8,3.67391]
[1739993188675,1.164684,2722.6,2721.3,4.48013317]
[1739993188882,4.47036,2722.6,2721.7,4.42447]
[1739993189376,4.47036,2722.6,2721.9,3.67389]
[1739993189877,3.67326,2722.4,2721.7,4.42447]
[1739993190179,8.14339,2722.6,2721.8,3.67403]
[1739993190537,3.67314,2722.5,2721.9,3.67388]
[1739993190746,0.814339,2722.5,2721.8,3.674]
[1739993190943,0.7874,2722.4,2721.2,0.7631]
[1739993191140,3.0,2721.9,2721.3,3.67459]
[1739993191482,0.7874,2721.7,2721.3,3.67459]
[1739993191717,0.7874,2721.7,2721.4,3.6745]
[1739993192190,0.7874,2721.7,2720.9,4.43832]
[1739993192482,0.667385,2721.8,2721.5,3.67434]
[1739993192639,3.8309,2722.0,2721.5,3.67434]
[1739993192843,0.8309,2722.0,2721.5,3.67433]
[1739993193071,0.808,2722.4,2721.7,3.67408]
[1739993193382,0.808,2722.9,2722.2,0.8286]
[1739993193579,0.808,2723.2,2722.8,3.67268]
[1739993194088,0.808,2723.5,2723.0,3.67229]
[1739993194385,1.20101332,2723.8,2723.2,3.67207]
[1739993194591,3.67148,2723.7,2722.7,0.55]
[1739993194875,1.20101332,2723.8,2723.2,3.67204]
[1739993195077,4.87236332,2723.8,2723.1,4.50076]
[1739993195244,4.15871633,2723.7,2723.1,4.50076]
[1739993195464,4.15871633,2723.7,2723.1,0.8286]
[1739993195682,0.48723633,2723.7,2723.1,4.5008]
[1739993195857,0.48723633,2723.7,2723.2,3.6721]
[1739993196179,4.15870633,2723.7,2723.1,4.5008]
[1739993196488,0.49667063,2723.6,2723.3,3.67191]
[1739993196644,0.808,2723.8,2723.1,3.67218]
[1739993197239,3.67174,2723.5,2722.8,0.8286]
[1739993197540,3.67188,2723.4,2722.5,4.44909]
[1739993197773,3.67216,2723.2,2722.5,4.44909]
[1739993197977,0.734418,2723.1,2722.5,4.44909]
[1739993198175,0.734418,2723.1,2722.5,8.12206]
[1739993198386,6.67198,2723.4,2722.7,3.67282]
[1739993198680,0.808,2723.8,2722.5,4.44907]
[1739993198681,1.5434056,2723.8,2722.5,4.44907]
[1739993198845,3.67222,2723.2,2722.5,8.12208]
[1739993199041,7.3439,2723.4,2722.6,3.67295]
[1739993199268,0.73439,2723.3,2722.6,3.67295]
[1739993199472,0.73439,2723.3,2722.7,3.67282]
[1739993200116,4.40645,2723.3,2722.7,3.67282]
[1739993200410,3.67216,2723.2,2722.5,8.12208]
[1739993200616,3.67229,2723.1,2722.5,0.7761]
[1739993200814,3.67251,2723.0,2722.2,0.8215]
[1739993200970,3.67251,2723.0,2722.3,3.67329]
[1739993201175,3.67262,2722.9,2722.2,4.49487]
[1739993201472,3.67251,2723.0,2722.3,3.67329]
[1739993201675,0.4113165,2722.9,2722.3,3.67329]
[1739993202185,0.4113165,2722.9,2722.4,3.67322]
[1739993202785,0.4113165,2722.9,2722.4,7.34636]
[1739993203011,0.4113165,2722.9,2722.4,3.67314]
[1739993203193,0.440655,2723.1,2722.2,0.8215]
[1739993203377,3.67204,2723.3,2722.6,3.67283]
[1739993203700,3.67228,2723.2,2722.6,3.67283]
[1739993203870,3.67228,2723.1,2722.5,3.67302]
[1739993204068,3.67228,2723.2,2722.6,3.67285]
[1739993204306,3.6723,2723.1,2722.4,3.67318]
[1739993204513,0.8,2723.1,2722.2,0.8215]
[1739993204814,4.47229,2723.1,2722.2,4.4949]
[1739993204983,3.67252,2723.0,2722.4,3.67319]
[1739993205178,0.447252,2722.9,2722.4,3.67319]
[1739993206612,0.447252,2722.9,2722.3,3.67336]
[1739993206797,0.447252,2722.9,2722.4,3.67321]
[1739993207316,0.447252,2722.9,2722.4,3.6731]
[1739993207616,0.8036,2722.8,2721.4,0.26948371]
[1739993207824,3.67316,2722.5,2721.7,3.67406]
[1739993207982,0.7865,2722.3,2721.5,3.67435]
[1739993208317,8.13341,2722.3,2721.5,3.67435]
[1739993208522,3.67367,2722.1,2721.3,7.34923]
[1739993208708,3.813341,2722.2,2721.4,3.67457]
[1739993209016,3.813341,2722.2,2721.2,0.7951]
[1739993209017,0.813341,2722.2,2721.2,0.7951]
[1739993209314,0.7865,2721.8,2721.1,3.6749]
[1739993209524,3.67426,2721.7,2720.9,4.47026]
[1739993209688,0.7865,2721.8,2720.5,0.7951]
[1739993209887,8.13474,2721.8,2720.6,3.67565]
[1739993210222,4.46056,2721.8,2721.1,3.67488]
[1739993210384,0.774056,2721.7,2721.1,3.67488]
[1739993210718,0.7865,2721.8,2721.3,3.67463]
[1739993211077,0.7865,2721.8,2721.4,3.6745]
[1739993211278,0.7865,2722.1,2721.5,3.67435]
[1739993211489,0.7865,2722.1,2721.2,0.55]
[1739993211819,0.7865,2722.1,2721.4,3.6745]
[1739993212119,0.7865,2722.1,2721.4,4.464427]
[1739993212415,3.67377,2722.0,2721.2,3.67476]
[1739993212572,3.67377,2722.0,2721.2,7.34951]
[1739993212773,3.67377,2722.0,2721.2,3.67475]
[1739993212978,3.67419,2721.7,2721.0,3.675]
[1739993213215,3.67422,2721.7,2721.0,3.675]
[1739993213415,4.42541,2721.8,2721.1,3.67488]
[1739993213725,4.42541,2721.8,2721.0,7.35003]
[1739993214014,4.42541,2721.8,2721.1,3.67495]
[1739993214184,5.235336,2721.8,2721.1,3.67495]
[1739993214416,0.7513,2721.8,2720.9,0.55]
[1739993214804,0.7513,2721.8,2721.3,3.67459]
[1739993215301,0.7513,2721.8,2720.9,4.22519]
[1739993215302,0.8329,2722.1,2721.5,3.67435]
[1739993215618,0.8329,2722.1,2721.6,3.67424]
[1739993215821,0.8329,2722.1,2721.5,7.3487]
[1739993216206,0.8329,2722.1,2721.7,3.67417]
[1739993216409,4.5066,2722.1,2721.4,4.50247]
[1739993216634,4.5066,2722.1,2721.4,0.8279]
[1739993216948,4.5066,2722.1,2721.4,1.278153]
[1739993217102,4.5066,2722.1,2721.5,3.67443]
[1739993217545,4.5066,2722.1,2721.4,1.278153]
[1739993217546,3.67377,2722.0,2721.4,1.278153]
[1739993217732,4.50653,2722.1,2721.5,3.67441]
[1739993217929,4.50653,2722.1,2721.5,7.34882]
[1739993218246,0.8329,2722.1,2721.5,4.5371073]
[1739993218623,0.8329,2722.1,2721.5,0.8626973]
[1739993218827,0.8329,2722.1,2721.6,3.67419]
[1739993219009,7.4253,2722.4,2721.4,0.8279]
[1739993219209,3.67349,2722.3,2721.5,3.67444]
[1739993219507,3.67378,2722.0,2721.5,3.67444]
[1739993219708,3.67378,2722.0,2721.3,3.6746]
[1739993219939,3.67378,2722.0,2721.4,3.67446]
[1739993220311,3.67378,2722.0,2721.3,4.042062]
[1739993220510,0.7812,2721.9,2721.4,3.67448]
[1739993221057,0.7812,2721.9,2721.4,3.67457]
[1739993221347,0.7812,2721.9,2721.5,3.67437]
[1739993221513,0.7812,2721.9,2721.4,4.4462132]
[1739993221708,0.7812,2721.9,2721.3,4.042102]
[1739993221937,0.7812,2721.9,2721.3,7.716712]
[1739993222133,3.67302,2722.6,2721.7,3.67411]
[1739993222134,0.7546,2722.6,2721.7,3.67411]
[1739993222435,3.67323,2722.4,2721.5,3.67433]
[1739993222663,3.67323,2722.4,2721.7,3.67415]
[1739993222664,3.67343,2722.3,2721.7,3.67415]
[1739993222857,3.67351,2722.2,2721.6,3.67429]
[1739993223172,4.49309,2722.0,2721.5,3.67433]
[1739993223373,0.8193,2722.0,2721.5,3.67433]
[1739993223555,0.8193,2722.0,2721.5,8.1203232]
[1739993224165,0.8193,2722.0,2721.7,3.67415]
[1739993224474,0.8175,2722.6,2722.3,3.67334]
[1739993224784,0.8175,2722.6,2722.2,3.67349]
[1739993225377,0.8175,2722.6,2722.0,3.67367]
[1739993225869,4.4905,2722.6,2722.0,3.67367]
[1739993226072,4.4905,2722.6,2722.0,7.34737]
[1739993226237,5.306844,2722.6,2721.9,3.67383]
[1739993226576,5.306814,2722.6,2721.8,3.67393]
[1739993226756,3.67321,2722.5,2721.8,3.67395]
[1739993226932,4.49047,2722.6,2721.7,3.67417]
[1739993226933,3.67324,2722.4,2721.7,3.67417]
[1739993227130,3.67355,2722.2,2721.5,4.4459832]
[1739993227369,3.67347,2722.3,2721.6,7.34846]
[1739993227573,0.749034,2722.5,2721.5,0.7716432]
[1739993227761,3.0,2722.5,2722.0,3.67375]
[1739993227932,3.0,2722.5,2722.1,3.67362]
[1739993228334,4.49052,2722.6,2721.6,4.2243]
[1739993228335,0.8175,2722.6,2721.6,4.2243]
[1739993228568,0.8175,2722.6,2722.2,3.67347]
[1739993228955,3.67264,2722.9,2722.2,3.67347]
[1739993229284,3.67289,2722.7,2722.0,3.67373]
[1739993229527,3.67297,2722.6,2721.8,3.67393]
[1739993229677,0.7852,2722.5,2721.9,3.67383]
[1739993230220,0.7852,2722.5,2721.5,7.4460732]
[1739993230221,3.67323,2722.4,2721.6,3.67423]
[1739993230513,3.67325,2722.4,2721.7,3.67405]
[1739993230718,3.67325,2722.4,2721.8,3.67397]
[1739993230873,3.67325,2722.4,2721.8,3.67403]
[1739993231069,4.5231277,2722.4,2721.8,3.67403]
[1739993231275,0.7852,2722.5,2722.2,3.67346]
[1739993231501,0.7852,2722.5,2722.0,3.67366]
[1739993231928,4.45836,2722.5,2721.9,3.67381]
[1739993232219,1.598325,2722.5,2721.6,4.4872]
[1739993232398,4.45833,2722.5,2721.8,3.67392]
[1739993232608,3.67323,2722.4,2721.8,3.67392]
[1739993232781,4.45833,2722.5,2721.8,3.67392]
[1739993232985,4.45833,2722.5,2721.9,3.67389]
[1739993233318,0.7852,2722.5,2722.2,7.34691]
[1739993233483,0.7715,2722.8,2722.3,3.67335]
[1739993233677,0.7715,2722.8,2722.2,3.67342]
[1739993233990,1.583179,2722.8,2722.2,3.67342]
[1739993234199,4.44429,2722.8,2722.2,3.67342]
[1739993234601,4.44429,2722.8,2722.2,4.49972]
[1739993234946,3.67298,2722.6,2722.0,3.67376]
[1739993235101,3.67298,2722.6,2722.0,7.34731]
[1739993235296,3.67288,2722.7,2722.1,3.67357]
[1739993235941,3.67316,2722.5,2721.7,3.67404]
[1739993236095,3.67305,2722.6,2721.9,3.67382]
[1739993236438,3.67305,2722.6,2722.0,3.67373]
[1739993236939,3.67311,2722.5,2721.9,3.67382]
[1739993237146,1.520216,2722.5,2721.5,4.4460132]
[1739993237301,3.67345,2722.3,2721.6,3.67418]
[1739993237496,4.45882,2722.4,2721.3,1.173662]
[1739993237731,0.7856,2722.4,2722.0,3.67368]
[1739993237929,0.7856,2722.4,2722.1,3.67354]
[1739993238146,0.7856,2722.4,2722.0,3.67368]
[1739993238445,4.43672,2722.7,2722.1,3.67358]
[1739993238814,4.43672,2722.7,2722.0,4.117098]
[1739993239142,0.7639,2722.7,2722.0,4.117068]
[1739993239318,4.43681,2722.7,2722.1,3.67359]
[1739993239714,4.43681,2722.7,2722.2,3.67342]
[1739993240112,3.67305,2722.6,2721.9,3.67385]
[1739993240343,3.67323,2722.4,2721.9,3.67385]
[1739993240545,3.67311,2722.5,2721.9,3.67382]
[1739993240717,3.67311,2722.5,2722.0,3.67367]
[1739993241059,0.7639,2722.7,2722.0,3.67367]
[1739993241060,3.67296,2722.6,2722.0,3.67367]
[1739993241262,3.67296,2722.6,2722.1,3.67363]
[1739993242359,0.7639,2722.7,2722.2,3.67342]
[1739993243126,3.67319,2722.5,2722.0,3.67374]
[1739993243662,3.67308,2722.6,2722.0,3.67374]
[1739993243865,3.67312,2722.5,2722.0,3.67374]
[1739993244063,3.67312,2722.5,2721.8,7.34786]
[1739993244270,4.42726,2722.3,2721.6,3.67421]
[1739993244499,3.67358,2722.2,2721.6,3.67421]
[1739993244807,3.7538,2721.9,2721.0,0.8309]
[1739993244956,0.742766,2721.8,2721.2,3.67478]
[1739993245356,0.742766,2721.8,2721.3,3.67465]
[1739993245561,4.416866,2721.8,2721.3,3.67465]
[1739993246105,0.742766,2721.8,2721.3,3.67465]
[1739993246398,3.67424,2721.7,2721.1,3.67486]
[1739993246601,4.1912986,2721.7,2721.1,3.67487]
[1739993246957,4.46103,2721.6,2721.0,3.67511]
[1739993247159,0.7597,2721.1,2720.5,3.67573]
[1739993247360,0.7597,2721.1,2720.4,3.67585]
[1739993247606,0.7597,2721.1,2720.4,4.124535]